bitfinex-derivatives/quotes_ETHF0:USTF0_20250708
["timestamp","ask_amount","ask_price","bid_price","bid_amount"]
[1751933859075,2.49147,2545.6,2545.5,2.96417484]
[1751933859575,1.7059,2545.6,2545.5,3.61217484]
[1751933859879,36.8889,2545.6,2545.5,3.61217484]
[1751933860080,36.8889,2545.6,2545.5,4.67237484]
[1751933861082,36.8859,2545.6,2545.5,4.67237484]
[1751933861782,36.8859,2545.6,2545.5,3.61217484]
[1751933862584,37.67147,2545.6,2545.5,3.61217484]
[1751933862781,0.78561,2545.5,2545.4,0.7856]
[1751933863085,1.301,2545.5,2545.4,0.7856]
[1751933863286,1.6632,2545.5,2545.4,1.4336]
[1751933865490,2.4488,2545.5,2545.4,1.4336]
[1751933866490,1.6632,2545.5,2545.4,1.4336]
[1751933866689,2.4488,2545.5,2545.4,1.4336]
[1751933867989,1.6632,2545.5,2545.4,1.4336]
[1751933868390,2.4488,2545.5,2545.4,1.4336]
[1751933868994,1.6632,2545.5,2545.4,1.4336]
[1751933869387,2.4488,2545.5,2545.4,1.4336]
[1751933869787,1.301,2545.5,2545.1,0.6688]
[1751933869988,26.838,2545.4,2545.1,0.6874]
[1751933870188,0.357,2545.2,2545.1,0.6874]
[1751933870493,2.86197,2545.3,2545.2,2.96428484]
[1751933870690,29.69697,2545.3,2545.2,2.96428484]
[1751933871483,30.05397,2545.3,2545.2,2.96428484]
[1751933871686,29.69697,2545.3,2545.2,2.17859484]
[1751933871892,30.05397,2545.3,2545.2,2.96428484]
[1751933873196,31.66459597,2545.3,2545.2,2.96428484]
[1751933873491,31.66459597,2545.3,2545.2,3.65168484]
[1751933873795,31.66458597,2545.3,2545.2,3.65168484]
[1751933874391,31.30758597,2545.3,2545.2,3.65168484]
[1751933874791,31.66458597,2545.3,2545.2,3.65168484]
[1751933875187,30.87892597,2545.3,2545.2,3.65168484]
[1751933875697,31.66458597,2545.3,2545.2,3.65168484]
[1751933875895,28.43862597,2545.3,2545.2,4.70978484]
[1751933876395,28.45572875,2545.3,2545.2,4.70978484]
[1751933877198,1.62772875,2545.3,2545.2,4.70978484]
[1751933877391,26.826,2545.3,2545.2,3.92409484]
[1751933877594,8.325,2545.6,2545.5,0.7856]
[1751933877897,36.7795825,2545.6,2545.5,4.70969484]
[1751933879087,36.78055267,2545.6,2545.5,4.70969484]
[1751933879889,37.13755267,2545.6,2545.5,4.70969484]
[1751933880198,1.98655267,2545.6,2545.5,4.70969484]
[1751933880394,37.13755267,2545.6,2545.5,4.70969484]
[1751933881089,37.13655267,2545.6,2545.5,4.70969484]
[1751933885094,1.98655267,2545.6,2545.5,4.70969484]
[1751933885298,37.13655267,2545.6,2545.5,4.70969484]
[1751933886595,1.62955267,2545.6,2545.5,4.70969484]
[1751933886800,28.45455267,2545.6,2545.5,4.70969484]
[1751933888799,28.81155267,2545.6,2545.5,4.70969484]
[1751933889002,29.59711267,2545.6,2545.5,3.65159484]
[1751933889198,37.90711267,2545.6,2545.5,3.65159484]
[1751933889902,37.90711267,2545.6,2545.5,2.86599484]
[1751933890197,37.90711267,2545.6,2545.5,0.6874]
[1751933891000,0.7856,2545.5,2545.4,0.7856]
[1751933891198,4.18705267,2545.5,2545.4,1.473]
[1751933891401,4.51115267,2545.5,2545.4,1.473]
[1751933891597,4.51115267,2545.5,2545.1,2.17859484]
[1751933891598,0.78569,2545.2,2545.1,2.17859484]
[1751933891803,29.59593908,2545.2,2545.1,0.6874]
[1751933892102,29.23893908,2545.2,2545.1,0.6874]
[1751933892297,29.59593908,2545.2,2545.1,0.6874]
[1751933892799,28.81024908,2545.2,2545.1,1.47312]
[1751933893099,28.81024908,2545.2,2545.1,4.70981484]
[1751933894394,1.62924908,2545.2,2545.1,4.70981484]
[1751933894602,28.45324908,2545.2,2545.1,4.70981484]
[1751933894802,1.62924908,2545.2,2545.1,6.07221484]
[1751933895197,8.311,2545.4,2545.3,0.78566]
[1751933895397,26.83,2545.4,2545.3,4.70975484]
[1751933895597,0.78551,2545.8,2545.7,0.78553]
[1751933895798,35.92951,2545.8,2545.7,3.65152484]
[1751933896002,35.92951,2545.8,2545.7,4.70962484]
[1751933896195,36.28651,2545.8,2545.7,4.70962484]
[1751933897206,66.1852101,2546.0,2545.9,0.78547]
[1751933897506,69.597,2546.0,2545.9,4.70956484]
[1751933897702,96.428,2546.0,2545.9,4.70956484]
[1751933901005,97.7339,2546.0,2545.9,4.70956484]
[1751933901303,97.7339,2546.0,2545.9,3.65146484]
[1751933902802,97.7339,2546.0,2545.9,4.67896484]
[1751933906810,98.51934,2546.0,2545.9,4.67896484]
[1751933907007,98.51934,2546.0,2545.9,3.65146484]
[1751933907308,100.13138578,2546.0,2545.9,3.65146484]
[1751933908308,99.34594578,2546.0,2545.9,3.65146484]
[1751933908607,99.34594578,2546.0,2545.9,4.67896484]
[1751933913215,100.13138578,2546.0,2545.9,4.67896484]
[1751933913615,100.13138578,2546.0,2545.9,3.65146484]
[1751933913815,64.20394578,2546.0,2545.9,3.65146484]
[1751933914018,91.02294578,2546.0,2545.9,4.67896484]
[1751933915812,89.71704578,2546.0,2545.9,4.67896484]
[1751933916817,62.89804578,2546.0,2545.9,4.67896484]
[1751933917021,8.31,2546.2,2546.1,0.78541]
[1751933917315,35.129,2546.2,2546.1,4.66450484]
[1751933918111,8.31,2546.2,2546.1,4.66450484]
[1751933918307,35.4864,2546.2,2546.1,4.66450484]
[1751933918513,37.52482281,2546.2,2546.1,3.63700484]
[1751933918712,35.91438,2546.2,2546.1,3.63700484]
[1751933918919,36.27178,2546.2,2546.1,3.63700484]
[1751933919110,35.91438,2546.2,2546.1,3.63700484]
[1751933919419,36.27178,2546.2,2546.1,3.63700484]
[1751933920019,35.4864,2546.2,2546.1,3.63700484]
[1751933921019,36.27178,2546.2,2546.1,3.63700484]
[1751933921319,37.67688,2546.2,2546.1,3.63700484]
[1751933921518,39.28599432,2546.2,2546.1,0.673]
[1751933921714,39.28599432,2546.2,2546.1,1.45841]
[1751933921908,38.50061432,2546.2,2546.1,1.45841]
[1751933922114,38.14321432,2546.2,2546.1,1.45841]
[1751933922310,38.50061432,2546.2,2546.1,1.45841]
[1751933922716,38.50061432,2546.2,2546.1,3.63700484]
[1751933923620,38.50061432,2546.2,2546.1,4.66450484]
[1751933923821,1.60911432,2546.2,2546.1,4.66450484]
[1751933924015,1.43049,2546.5,2546.4,0.78532]
[1751933924210,36.91289,2546.5,2546.4,3.63691484]
[1751933924415,38.16539373,2546.5,2546.4,3.63691484]
[1751933924620,39.91049373,2546.5,2546.4,3.63691484]
[1751933926121,39.12520373,2546.5,2546.4,3.63691484]
[1751933926721,4.00020373,2546.5,2546.4,3.63691484]
[1751933926921,38.48000373,2546.5,2546.4,4.66441484]
[1751933927826,38.48000373,2546.5,2546.4,2.48582]
[1751933928424,3.35500373,2546.5,2546.4,2.48582]
[1751933928727,0.78514,2547.0,2546.9,0.78516]
[1751933928917,29.30074,2547.0,2546.9,3.63675484]
[1751933929116,28.5156,2547.0,2546.9,3.63675484]
[1751933929319,28.5156,2547.0,2546.9,4.66425484]
[1751933929714,1.6936,2547.0,2546.9,4.66425484]
[1751933929928,29.29873,2547.0,2546.9,4.66425484]
[1751933930320,28.5136,2547.0,2546.9,4.66425484]
[1751933931322,1.6936,2547.0,2546.9,4.66425484]
[1751933931525,28.5086,2547.0,2546.9,4.66425484]
[1751933931921,27.1753,2547.0,2546.9,4.66425484]
[1751933932122,0.3603,2547.0,2546.9,4.66425484]
[1751933932322,27.1733,2547.0,2546.9,4.66425484]
[1751933932524,0.3603,2547.0,2546.9,4.66425484]
[1751933932826,26.813,2547.0,2546.9,4.66425484]
[1751933933228,9.006,2547.2,2547.1,0.7851]
[1751933933422,36.1754,2547.2,2547.1,3.66389484]
[1751933933618,36.1754,2547.2,2547.1,4.63469484]
[1751933934424,36.96047,2547.2,2547.1,4.63469484]
[1751933934629,38.24927,2547.2,2547.1,3.66389484]
[1751933935326,38.24927,2547.2,2547.1,0.7002]
[1751933936433,38.24927,2547.2,2547.1,1.4853]
[1751933936628,38.24927,2547.2,2547.1,0.7002]
[1751933937532,0.78527,2546.6,2546.5,0.78529]
[1751933937825,28.98859484,2546.6,2546.0,0.9708]
[1751933938030,1.9668,2546.5,2546.3,0.78534]
[1751933938228,28.89235,2546.4,2546.2,0.78535]
[1751933938427,1.291,2546.3,2546.2,0.78535]
[1751933939026,1.291,2546.3,2546.2,1.48555]
[1751933939623,2.07635,2546.3,2546.2,1.48555]
[1751933939830,2.07635,2546.3,2546.2,0.7002]
[1751933940031,0.78541,2546.1,2546.0,1.75623]
[1751933940231,27.59941,2546.1,2546.0,2.45643]
[1751933940633,26.814,2546.1,2546.0,2.45643]
[1751933941335,28.89321,2546.1,2546.0,2.45643]
[1751933941933,28.1078,2546.1,2546.0,2.45643]
[1751933942739,28.4642,2546.1,2546.0,2.45643]
[1751933943242,28.1078,2546.1,2546.0,2.45643]
[1751933943736,28.4642,2546.1,2546.0,2.45643]
[1751933945139,27.1704,2546.1,2546.0,2.45643]
[1751933947035,27.1704,2546.1,2546.0,1.48563]
[1751933947236,28.5426,2546.1,2546.0,1.48563]
[1751933947538,28.5426,2546.1,2546.0,2.45643]
[1751933948735,29.32801,2546.1,2546.0,1.48563]
[1751933948940,28.5426,2546.1,2546.0,1.48563]
[1751933949142,0.7855,2545.9,2545.8,0.78548]
[1751933949442,0.7855,2545.9,2545.8,3.66427484]
[1751933949837,1.1419,2545.9,2545.8,2.87879484]
[1751933950140,1.1419,2545.9,2545.2,3.3525]
[1751933950141,1.96392,2545.6,2545.2,0.78566]
[1751933950340,0.3564,2545.3,2545.2,2.87879484]
[1751933950540,26.813,2545.4,2545.3,0.78566]
[1751933950839,9.09354,2545.7,2545.6,0.78556]
[1751933951043,11.02374592,2545.7,2545.6,3.66435484]
[1751933951242,37.84374592,2545.7,2545.6,3.66435484]
[1751933952442,36.26994,2545.7,2545.6,3.66435484]
[1751933952748,37.84271364,2545.7,2545.6,3.66435484]
[1751933952949,36.26994,2545.7,2545.6,3.66435484]
[1751933953840,36.26994,2545.7,2545.6,2.87879484]
[1751933954049,0.78559,2545.5,2545.4,0.78561]
[1751933954243,1.14199,2545.5,2545.4,1.48581]
[1751933954643,2.54149,2545.5,2545.4,0.7002]
[1751933954843,42.76362,2546.0,2545.4,1.671]
[1751933955041,2.0456,2545.8,2545.5,2.17859484]
[1751933955344,1.14196,2545.6,2545.5,0.7002]
[1751933955543,27.96996,2545.6,2545.5,1.48579]
[1751933957245,27.96996,2545.6,2545.5,1.48579]
[1751933957545,27.96996,2545.6,2545.5,0.7002]
[1751933958248,27.96996,2545.6,2545.5,1.48579]
[1751933958443,27.96996,2545.6,2545.5,0.7002]
[1751933959745,27.96996,2545.6,2545.5,1.48579]
[1751933964151,0.78566,2545.4,2545.3,0.78564]
[1751933964451,0.78567,2545.3,2545.2,0.78566]
[1751933964651,1.14757,2545.3,2545.2,2.51936]
[1751933964846,0.78567,2545.3,2545.2,2.51936]
[1751933965046,27.61665,2545.4,2545.3,0.78566]
[1751933965248,27.97855,2545.4,2545.3,1.47536]
[1751933965449,27.97855,2545.4,2545.3,0.6897]
[1751933965853,28.65745,2545.4,2545.3,0.6897]
[1751933967151,28.65745,2545.4,2545.3,1.47535]
[1751933967351,28.65745,2545.4,2545.3,0.6897]
[1751933969446,30.232272,2545.4,2545.3,0.6897]
[1751933972450,29.553342,2545.4,2545.3,4.69795484]
[1751933973552,29.553342,2545.4,2545.3,3.91229484]
[1751933975659,29.553342,2545.4,2545.3,0.6897]
[1751933976457,0.78569,2545.2,2545.1,1.7301]
[1751933976653,27.60969,2545.2,2545.1,1.3758]
[1751933976857,27.97159,2545.2,2545.1,3.20552]
[1751933977156,27.60969,2545.2,2545.1,4.59839484]
[1751933977758,27.97159,2545.2,2545.1,4.59839484]
[1751933977957,27.60969,2545.2,2545.1,4.59839484]
[1751933978350,29.54994822,2545.2,2545.1,4.59839484]
[1751933979159,29.54994822,2545.2,2545.1,5.38411484]
[1751933979460,29.54994822,2545.2,2545.1,4.59839484]
[1751933979860,29.54994822,2545.2,2545.1,5.38411484]
[1751933980062,29.54994822,2545.2,2545.1,4.59839484]
[1751933980358,29.54994822,2545.2,2545.1,3.55439484]
[1751933980755,28.40235822,2545.2,2545.1,5.38411484]
[1751933981158,1.57835822,2545.2,2545.1,5.38411484]
[1751933981358,28.40235822,2545.2,2545.1,5.38411484]
[1751933982259,29.18804822,2545.2,2545.1,5.38411484]
[1751933986359,29.54994822,2545.2,2545.1,4.59839484]
[1751933986559,29.54994822,2545.2,2545.1,0.6897]
[1751933986755,0.78575,2545.0,2544.9,0.78577]
[1751933987062,29.55000822,2545.0,2544.9,2.51948]
[1751933987266,29.55000822,2545.0,2544.9,4.69807484]
[1751933987462,29.18810822,2545.0,2544.9,4.69807484]
[1751933987663,29.55000822,2545.0,2544.9,4.69807484]
[1751933988360,0.78578,2544.9,2544.8,0.6944]
[1751933988666,28.40235822,2544.9,2544.8,2.16991]
[1751933989167,1.57835822,2544.9,2544.8,3.21391]
[1751933989362,0.78571,2545.2,2545.1,0.78568]
[1751933989568,29.18965002,2545.2,2545.1,3.65397484]
[1751933989764,29.18965002,2545.2,2545.1,4.69797484]
[1751933989765,1.57994002,2545.2,2545.1,4.69797484]
[1751933989969,28.40394002,2545.2,2545.1,4.69797484]
[1751933990163,28.40394002,2545.2,2545.1,2.51938]
[1751933991066,29.18963002,2545.2,2545.1,2.51938]
[1751933991877,29.54453002,2545.2,2545.1,2.51938]
[1751933992483,0.78578,2545.0,2544.9,0.78575]
[1751933992780,29.54462002,2545.0,2544.9,2.40855]
[1751933993076,28.75884002,2545.0,2544.6,0.9655]
[1751933993281,1.58067703,2544.9,2544.5,4.14334484]
[1751933993481,3.08908,2544.9,2544.8,1.44311]
[1751933993682,31.13855365,2544.9,2544.8,1.44311]
[1751933993876,30.70767365,2544.9,2544.8,1.44311]
[1751933994175,29.70147365,2544.9,2544.8,2.40861]
[1751933994373,28.40437365,2544.9,2544.8,2.40861]
[1751933995176,28.75927365,2544.9,2544.8,2.40861]
[1751933999682,26.824,2544.9,2544.8,2.40861]
[1751934000186,9.5967,2545.4,2544.9,1.96443]
[1751934000375,30.47427325,2545.3,2545.2,0.78566]
[1751934000574,30.82917325,2545.3,2545.2,2.40846]
[1751934000779,30.82917325,2545.3,2545.2,3.09696]
[1751934000974,30.47427325,2545.3,2545.2,3.09696]
[1751934001388,30.82917325,2545.3,2545.2,3.09696]
[1751934002284,30.82917325,2545.3,2545.2,2.13146]
[1751934002783,30.04351325,2545.3,2545.2,2.13146]
[1751934003188,30.82917325,2545.3,2545.2,2.13146]
[1751934004789,3.21851325,2545.3,2545.2,2.13146]
[1751934005082,3.21851325,2545.3,2545.2,3.09696]
[1751934005281,1.57791325,2545.3,2545.2,3.09696]
[1751934005487,28.40291325,2545.3,2545.2,3.09696]
[1751934006487,1.57791325,2545.3,2545.2,3.09696]
[1751934007084,26.824,2545.4,2545.3,0.78566]
[1751934007286,28.40199001,2545.4,2545.3,1.44296]
[1751934007487,29.54252001,2545.4,2545.3,4.58705484]
[1751934007687,28.40199001,2545.4,2545.3,4.58705484]
[1751934008885,29.18762001,2545.4,2545.3,4.58705484]
[1751934009089,2.36362001,2545.4,2545.3,4.58705484]
[1751934009283,28.40199001,2545.4,2545.3,4.58705484]
[1751934010094,29.18762001,2545.4,2545.3,4.58705484]
[1751934010392,29.54252001,2545.4,2545.3,4.58705484]
[1751934010892,28.75689001,2545.4,2545.3,4.58705484]
[1751934011093,29.54252001,2545.4,2545.3,4.58705484]
[1751934011287,28.75689001,2545.4,2545.3,4.58705484]
[1751934012888,28.40199001,2545.4,2545.3,4.58705484]
[1751934013088,28.39967279,2545.4,2545.3,4.58705484]
[1751934013393,26.824,2545.4,2545.3,4.58705484]
[1751934017497,0.78551,2545.8,2545.5,1.96396]
[1751934017803,1.5751714,2545.7,2545.6,1.6389]
[1751934017994,1.5751714,2545.7,2545.6,2.2962]
[1751934018299,28.3961714,2545.7,2545.6,3.08176]
[1751934018896,28.7549714,2545.7,2545.6,3.08176]
[1751934019100,28.3961714,2545.7,2545.6,3.08176]
[1751934019794,28.7549714,2545.7,2545.6,3.08176]
[1751934020193,29.5405014,2545.7,2545.6,3.08176]
[1751934020500,30.9060014,2545.7,2545.6,1.44286]
[1751934021301,0.78556,2545.6,2545.4,0.6631]
[1751934021501,27.1781,2545.5,2545.4,3.09742]
[1751934022401,27.96369,2545.5,2545.4,3.09742]
[1751934022600,29.35379,2545.5,2545.4,3.09742]
[1751934022796,30.14303691,2545.5,2545.4,3.09742]
[1751934023100,30.92862691,2545.5,2545.4,3.09742]
[1751934024302,30.14303691,2545.5,2545.4,3.09742]
[1751934024898,29.78493691,2545.5,2545.4,3.09742]
[1751934025300,1.57483691,2545.5,2545.4,3.09742]
[1751934025505,28.39383691,2545.5,2545.4,3.09742]
[1751934026302,27.96269,2545.5,2545.4,3.09742]
[1751934026499,27.60459,2545.5,2545.4,3.09742]
[1751934026701,27.96269,2545.5,2545.4,3.09742]
[1751934026899,27.96269,2545.5,2545.4,2.13192]
[1751934027206,27.96269,2545.5,2545.4,1.46882]
[1751934027499,27.401,2545.5,2545.1,0.78568]
[1751934027704,0.78572,2545.2,2545.1,0.78568]
[1751934028005,27.96182,2545.2,2545.1,1.46888]
[1751934028206,27.1761,2545.2,2545.1,3.64747484]
[1751934028405,27.96179,2545.2,2545.1,4.68347484]
[1751934028707,30.0453449,2545.2,2545.1,4.68347484]
[1751934029006,30.8310349,2545.2,2545.1,4.68347484]
[1751934029402,30.0453449,2545.2,2545.1,4.68347484]
[1751934030000,28.4566,2545.2,2545.1,4.68347484]
[1751934030202,30.04568875,2545.2,2545.1,4.68347484]
[1751934031010,28.40708875,2545.2,2545.1,4.68347484]
[1751934031303,2.76638,2545.6,2545.5,0.78559]
[1751934031607,31.53149579,2545.6,2545.5,0.78559]
[1751934032408,31.53149579,2545.6,2545.5,1.46879]
[1751934033105,30.74591579,2545.6,2545.5,1.46879]
[1751934033408,30.74591579,2545.6,2545.5,2.50479]
[1751934033607,30.83117579,2545.6,2545.5,2.50479]
[1751934033804,30.83117579,2545.6,2545.5,1.46879]
[1751934034003,29.24216,2545.6,2545.5,1.46879]
[1751934034204,4.01442984,2545.6,2545.5,1.46879]
[1751934034405,30.83242984,2545.6,2545.5,1.46879]
[1751934034702,30.83273919,2545.6,2545.5,1.46879]
[1751934036511,1.59057919,2545.6,2545.5,2.50479]
[1751934036804,26.818,2545.9,2545.6,1.96391]
[1751934037005,64.84158431,2546.2,2546.1,0.78541]
[1751934037206,89.72203538,2546.2,2546.1,2.50461]
[1751934037400,90.50741538,2546.2,2546.1,2.50461]
[1751934038208,95.33969969,2546.2,2546.1,0.78541]
[1751934038413,0.78548,2546.0,2545.9,2.96401484]
[1751934038705,28.40803538,2546.0,2545.9,4.00001484]
[1751934038914,28.40803538,2546.0,2545.9,4.68321484]
[1751934040009,28.40694643,2546.0,2545.9,4.68321484]
[1751934041005,2.73248643,2546.0,2545.9,4.68321484]
[1751934041203,30.93988643,2546.0,2545.9,4.68321484]
[1751934042812,30.15444643,2546.0,2545.9,4.68321484]
[1751934043012,27.1851,2546.0,2545.9,4.68321484]
[1751934045512,27.97054,2546.0,2545.9,4.68321484]
[1751934046108,1.14354,2546.0,2545.9,4.68321484]
[1751934046310,27.95654,2546.0,2545.9,4.68321484]
[1751934049222,27.95654,2546.0,2545.9,2.86179484]
[1751934049416,27.95654,2546.0,2545.9,0.78547]
[1751934049721,0.78553,2545.7,2545.6,1.82154]
[1751934050016,27.59853,2545.7,2545.6,2.50474]
[1751934051414,27.59853,2545.7,2545.6,4.68333484]
[1751934052124,26.813,2545.7,2545.6,4.68333484]
[1751934052524,28.1469,2545.7,2545.6,3.89779484]
[1751934052825,28.1469,2545.7,2545.6,2.96415484]
[1751934053015,28.5049,2545.7,2545.6,3.64505484]
[1751934053215,28.1469,2545.7,2545.6,3.64505484]
[1751934053424,29.29043,2545.7,2545.6,3.64505484]
[1751934053626,28.5049,2545.7,2545.6,3.64505484]
[1751934054520,28.5049,2545.7,2545.4,3.67286]
[1751934054521,28.5049,2545.7,2545.4,3.88739484]
[1751934054726,27.95656,2545.7,2545.6,0.78556]
[1751934055431,0.6539,2545.9,2545.8,0.7855]
[1751934055728,28.39671035,2545.9,2545.8,4.68079484]
[1751934056430,8.309,2546.1,2546.0,0.78544]
[1751934056731,1.58398771,2546.1,2546.0,6.85932968]
[1751934056925,26.814,2546.2,2546.1,0.78541]
[1751934057124,9.73687,2546.6,2546.5,0.78529]
[1751934057326,38.49271503,2546.6,2546.5,1.46619]
[1751934057629,38.13471503,2546.6,2546.5,1.46619]
[1751934057830,11.32071503,2546.6,2546.5,1.46619]
[1751934058032,38.13571503,2546.6,2546.5,1.46619]
[1751934058327,38.49371503,2546.6,2546.5,1.46619]
[1751934061035,37.70544503,2546.6,2546.5,1.46619]
[1751934062139,38.49069503,2546.6,2546.5,1.46619]
[1751934062838,36.90685,2546.6,2546.5,1.46619]
[1751934063031,38.49137175,2546.6,2546.5,1.46619]
[1751934063231,37.70612175,2546.6,2546.5,1.46619]
[1751934063640,38.49137175,2546.6,2546.5,1.46619]
[1751934064735,37.70612175,2546.6,2546.5,1.46619]
[1751934066335,38.49137175,2546.6,2546.5,1.46619]
[1751934067138,37.05952175,2546.6,2546.5,2.50199]
[1751934069036,37.84477175,2546.6,2546.5,2.50199]
[1751934069242,37.84477175,2546.6,2546.5,1.46619]
[1751934073241,11.03577175,2546.6,2546.5,1.46619]
[1751934073444,37.84277175,2546.6,2546.5,1.46619]
[1751934075145,37.05752175,2546.6,2546.5,1.46619]
[1751934075344,37.05752175,2546.6,2546.5,2.50199]
[1751934075541,37.84277175,2546.6,2546.5,1.46619]
[1751934075843,37.05752175,2546.6,2546.5,2.50198]
[1751934076441,37.05752175,2546.6,2546.5,4.68057484]
[1751934076843,10.25052175,2546.6,2546.5,4.68057484]
[1751934077042,9.89252175,2546.6,2546.5,4.68057484]
[1751934077339,28.39152175,2546.6,2546.5,4.68057484]
[1751934077539,26.807,2546.6,2546.5,6.01187484]
[1751934077745,28.38809629,2546.6,2546.5,6.01187484]
[1751934077947,1.58109629,2546.6,2546.5,6.01187484]
[1751934078141,4.83368431,2547.3,2546.5,10.22659484]
[1751934078342,1.3061,2547.3,2547.2,2.96366484]
[1751934078536,28.4701,2547.3,2547.2,3.64456484]
[1751934079345,29.25516,2547.3,2547.2,4.68036484]
[1751934080348,0.358,2547.3,2547.2,4.68036484]
[1751934080551,27.164,2547.3,2547.2,4.68036484]
[1751934080849,27.163,2547.3,2547.2,4.68036484]
[1751934085052,27.94804,2547.3,2547.2,4.68036484]
[1751934086353,27.163,2547.3,2547.2,4.68036484]
[1751934086552,27.94804,2547.3,2547.2,4.68036484]
[1751934087652,0.7851,2547.1,2547.0,0.78512]
[1751934087950,2.82889,2547.2,2547.1,0.78507]
[1751934088150,29.62789,2547.2,2547.1,1.46967]
[1751934088552,29.98549,2547.2,2547.1,1.46967]
[1751934090047,29.98549,2547.2,2547.1,0.6846]
[1751934090652,0.7851,2547.1,2547.0,0.78511]
[1751934090848,2.5196,2547.1,2547.0,1.46971]
[1751934092550,2.5196,2547.1,2546.9,2.96374484]
[1751934092750,0.7852,2546.9,2546.8,0.78517]
[1751934092945,1.1428,2546.9,2546.8,1.46977]
[1751934093150,1.7488,2546.9,2546.8,2.43587]
[1751934095056,1.3912,2546.9,2546.8,2.43587]
[1751934095263,0.78509,2547.3,2547.2,0.78505]
[1751934095450,0.78509,2547.3,2547.2,3.64824484]
[1751934095451,35.88709,2547.3,2547.2,3.64824484]
[1751934095753,37.80417583,2547.3,2547.2,2.86319484]
[1751934095953,39.09227583,2547.3,2547.2,2.86319484]
[1751934096152,39.09227583,2547.3,2547.2,3.64826484]
[1751934096354,39.09227583,2547.3,2547.2,2.86319484]
[1751934096549,0.7851,2547.1,2547.0,2.96370484]
[1751934096750,27.9397,2547.1,2547.0,3.64830484]
[1751934097256,27.5821,2547.1,2547.0,4.61440484]
[1751934097558,27.9397,2547.1,2547.0,4.61440484]
[1751934097752,27.9397,2547.1,2547.0,3.64830484]
[1751934098051,26.797,2547.1,2547.0,3.64830484]
[1751934098248,27.9397,2547.1,2547.0,3.64830484]
[1751934098453,27.1546,2547.1,2547.0,3.64830484]
[1751934098749,27.1546,2547.1,2547.0,4.61440484]
[1751934099755,27.9397,2547.1,2547.0,4.61440484]
[1751934099954,27.1546,2547.1,2547.0,4.61440484]
[1751934101256,27.9397,2547.1,2547.0,4.61440484]
[1751934101755,27.9397,2547.1,2547.0,3.64830484]
[1751934102052,29.5019175,2547.1,2547.0,3.64830484]
[1751934102258,0.78513,2547.0,2546.9,1.47086]
[1751934102558,3.15513,2547.0,2546.9,2.15546]
[1751934102961,2.79753,2547.0,2546.9,2.15546]
[1751934103453,3.15513,2547.0,2546.9,2.15546]
[1751934103655,3.15513,2547.0,2546.9,1.46976]
[1751934104058,4.7179172,2547.0,2546.9,1.46976]
[1751934104658,0.78516,2546.9,2546.8,0.78518]
[1751934104859,28.91256,2546.9,2546.8,1.46978]
[1751934105455,28.91256,2546.9,2546.8,0.6846]
[1751934105655,29.6914337,2546.9,2546.6,0.78525]
[1751934105861,1.3314,2546.8,2546.7,1.46981]
[1751934106060,3.25304611,2546.8,2546.7,1.46981]
[1751934106365,3.25304611,2546.8,2546.7,3.64840484]
[1751934106866,3.25304611,2546.8,2546.7,4.61450484]
[1751934108567,4.03824611,2546.8,2546.7,4.61450484]
[1751934110271,4.03824611,2546.8,2546.7,3.82929484]
[1751934110568,4.03824611,2546.8,2546.7,3.64842484]
[1751934110768,4.03824611,2546.8,2546.7,4.61452484]
[1751934111068,4.03824611,2546.8,2546.7,3.82929484]
[1751934111968,4.03824611,2546.8,2546.7,2.86319484]
[1751934112368,0.78526,2546.6,2546.5,3.14469484]
[1751934112568,27.94066,2546.6,2546.5,4.57138484]
[1751934112766,27.58026,2546.6,2546.5,4.57138484]
[1751934113269,27.94066,2546.6,2546.5,4.57138484]
[1751934114468,27.94066,2546.6,2546.5,2.81999484]
[1751934114668,29.50606576,2546.6,2546.5,2.81999484]
[1751934115368,29.50606576,2546.6,2546.5,3.60528484]
[1751934115565,29.50606576,2546.6,2546.5,3.79429484]
[1751934115765,0.78529,2546.5,2546.4,0.6771]
[1751934115965,2.43919,2546.5,2546.4,3.07812]
[1751934116366,1.14569,2546.5,2546.4,3.07812]
[1751934117172,2.71179637,2546.5,2546.4,3.07812]
[1751934118872,2.71179637,2546.5,2546.4,1.3185]
[1751934119269,0.78532,2546.4,2546.3,2.17859484]
[1751934119463,29.28732,2546.4,2546.3,2.81999484]
[1751934119670,30.4957749,2546.4,2546.3,0.6414]
[1751934119865,0.78538,2546.2,2546.1,0.6602]
[1751934120064,29.5046349,2546.2,2546.1,0.6414]
[1751934120370,0.78544,2546.0,2545.9,0.9743]
[1751934120569,2.3512749,2546.1,2545.9,3.79429484]
[1751934120770,27.58144,2546.0,2545.9,2.40117]
[1751934122075,0.78544,2546.0,2545.9,4.57976484]
[1751934122274,27.58144,2546.0,2545.9,4.57976484]
[1751934123571,27.93884,2546.0,2545.9,3.79429484]
[1751934123979,0.7855,2545.8,2545.7,2.83879484]
[1751934124174,27.5825,2545.8,2545.7,0.6414]
[1751934125077,28.2245,2545.8,2545.7,0.6414]
[1751934125272,28.5819,2545.8,2545.7,0.6414]
[1751934126671,28.5819,2545.8,2545.7,3.79429484]
[1751934126672,0.3574,2545.8,2545.7,3.79429484]
[1751934126870,36.2469,2545.8,2545.7,4.57982484]
[1751934127377,36.2469,2545.8,2545.7,3.79429484]
[1751934127671,36.2469,2545.8,2545.7,4.57982484]
[1751934131381,36.2469,2545.8,2545.7,3.79429484]
[1751934131577,0.78557,2545.6,2545.5,2.17859484]
[1751934131776,27.94297,2545.6,2545.5,2.81999484]
[1751934131977,27.94297,2545.6,2545.5,3.60559484]
[1751934132283,29.23537,2545.6,2545.5,3.60559484]
[1751934132981,27.94297,2545.6,2545.5,4.57989484]
[1751934133177,27.58557,2545.6,2545.5,4.57989484]
[1751934133481,0.78553,2545.8,2545.7,0.7855]
[1751934133676,27.58653,2545.8,2545.7,3.60549484]
[1751934133876,27.58653,2545.8,2545.7,4.57979484]
[1751934138785,27.58753,2545.8,2545.7,4.57979484]
[1751934139081,26.802,2545.8,2545.7,4.57979484]
[1751934139275,9.08941,2546.2,2546.1,0.78537]
[1751934139481,8.304,2546.6,2546.5,0.78529]
[1751934139681,37.45616656,2546.6,2546.5,3.79429484]
[1751934139876,37.81356656,2546.6,2546.5,3.60528484]